[Event "10th Norway Chess 2022"]
[White "Mamedyarov,Shakhriyar"]
[Black "So,Wesley"]
[Site "Stavanger"]
[Round "5.1"]
[Annotator "TA"]
[Result "1/2-1/2"]
[Date "2022.06.05"]
[WhiteElo "2770"]
[BlackElo "2766"]
[PlyCount "93"]
[TimeControl "60"]

{[%evp 14,93,24,22,20,22,12,18,14,11,10,18,11,16,35,25,25,28,23,28,38,27,29,25,35,37,39,33,37,14,16,13,16,14,14,10,41,10,9,9,27,10,30,10,28,8,54,22,22,22,22,22,22,20,20,0,0,0,0,0,0,0,0,0,0,0,0,0,0,0,0,0,0,0,0,0,0,0,0,0,0,0]} 1. d4 {[%emt 0:0:2]
} Nf6 {[%emt 0:1:10]} 2. c4 {[%emt 0:0:8]} e6 {[%emt 0:0:24]} 3. Nf3 {[%emt 0:0:8]} d5 {[%emt 0:0:5]} 4. Nc3 {[%emt 0:0:20]} c5 {[%emt 0:0:42]
} 5. cxd5 {[%emt 0:0:27]} cxd4 {[%emt 0:0:7]} 6. Qxd4 {[%emt 0:0:20]
} exd5 {[%emt 0:0:6]} 7. Bg5 {[%emt 0:3:13]} Be7 {[%emt 0:0:0]} 8. e3 {[%emt 0:0:15]} O-O {[%emt 0:0:6] D50: Queen's Gambit Declined:
Dutch-Peruvian Gambit.} 9. Be2 {[%emt 0:0:32]} Nc6 {[%emt 0:0:9]} 10. Qd3 {[%emt 0:0:12]
} h6 {[%emt 0:0:8]} 11. Bh4 {[%emt 0:0:4]} Qb6 {[%emt 0:0:0]} 12. O-O {[%emt 0:0:13]} Rd8 {[%emt 0:0:5]} ({But not} 12... Qxb2 13. Rab1 Qa3 14. Bxf6 (14. Nxd5 Nxd5 15. Qxd5 Bxh4 $11 )Bxf6 15. Nxd5 Qxd3 16. Nxf6+ (16. Bxd3 Rb8 $14 )gxf6 17. Bxd3 $14 )13. Rfd1 {[%emt 0:1:29]} Qxb2 {[%emt 0:0:8]} 14. Rab1 {[%emt 0:1:25]} Qa3 {[%emt 0:0:7]} 15. Bxf6 {[%emt 0:0:11]
} Bxf6 {[%emt 0:0:5]} 16. Nxd5 {[%emt 0:0:10] [#]} Qxd3 $146 {[%emt 0:0:7]
} ({Predecessor:} 16... Qxa2 17. Nxf6+ gxf6 18. Nd4 Be6 19. Rxb7 Rd6 20. Rd2 Qa1+ 21. Rb1 Qa5 22. Rdd1 Nxd4 23. exd4 {0-1 (40) Mamedyarov,S 
(2762)-So,W (2778) chess24.com INT 2021} )17. Nxf6+ {[%emt 0:0:19]} gxf6 {[%emt 0:0:5]
} 18. Rxd3 {[%emt 0:0:23]} Bf5 {[%emt 0:0:6]} 19. Rxd8+ {[%emt 0:0:55]
} Nxd8 {[%emt 0:0:5]} 20. Rb2 {[%emt 0:4:23]} Rc8 {[%emt 0:0:0]} 21. h4 {[%emt 0:0:45]} Rc1+ {[%emt 0:0:6]} 22. Kh2 {[%emt 0:0:5]} Rb1 {[%emt 0:0:21]} 23. Rxb1 {[%emt 0:6:1]} Bxb1 $11 {[%emt 0:0:5]
Endgame KBN-KBN} 24. a3 {[%emt 0:0:2]} Kf8 {[%emt 0:5:15]} 25. g4 {[%emt 0:0:0]} Ne6 {[%emt 0:4:22]} 26. Kg3 {[%emt 0:7:8]} Ke7 {[%emt 0:3:49]} 27. Nd2 {[%emt 0:19:49]} Bc2 {[%emt 0:1:29]} 28. f4 {[%emt 0:0:4]} Nc5 {[%emt 0:0:0]} 29. Kf3 {[%emt 0:2:45]} Nb3 {[%emt 0:10:50]} (29... Na4 $11 {deserves
consideration.} )30. Nxb3 {[%emt 0:9:3]} Bxb3 $14 {[%emt 0:1:29] KB-KB. The
position is equal.} 31. Ke4 {[%emt 0:1:7]} Be6 {[%emt 0:2:25]} 32. Kd4 {[%emt 0:0:34]
} b6 {[%emt 0:0:17]} 33. e4 {[%emt 0:4:18]} a5 {[%emt 0:5:20]} 34. e5 {[%emt 0:6:31]} fxe5+ {[%emt 0:0:41]} 35. Kxe5 {[%emt 0:0:11] [#] g5
is the strong threat.} f6+ {[%emt 0:0:11]} 36. Kd4 {[%emt 0:0:6]} Bd7 {[%emt 0:0:9]
} 37. g5 {[%emt 0:0:7]} fxg5 {[%emt 0:0:5]} 38. hxg5 {[%emt 0:0:4]
} hxg5 {[%emt 0:0:4]} 39. fxg5 {[%emt 0:0:3]} b5 {[%emt 0:0:0]} 40. Kc5 {[%emt 0:0:7]} b4 {[%emt 0:0:0]} 41. axb4 {[%emt 1:59:57]} axb4 {[%emt 1:59:44]} 42. Bc4 {[%emt 0:0:0]} Be6 {[%emt 0:0:0]} 43. Kxb4 {[%emt 0:0:0]
} Bxc4 {[%emt 0:0:0]} 44. Kxc4 {[%emt 0:0:0]} Ke6 {[%emt 0:0:0]} 45. g6 {[%emt 0:0:0]} Kf6 {[%emt 0:0:0]} 46. Kd4 {[%emt 0:0:0]} Kxg6 {[%emt 0:0:0]} 47. Ke4 {[%emt 0:0:6] Weighted Error Value: White=0.06
(flawless) /Black=0.05 (flawless)} 1/2-1/2

[Event "10th Norway Chess 2022"]
[White "Giri,Anish"]
[Black "Radjabov,Teimour"]
[Site "Stavanger"]
[Round "5.1"]
[Annotator "TA"]
[Result "1-0"]
[Date "2022.06.05"]
[WhiteElo "2761"]
[BlackElo "2753"]
[PlyCount "79"]
[TimeControl "60"]

{[%evp 19,79,52,43,50,61,37,47,38,65,54,75,69,78,86,87,73,76,83,79,87,109,77,87,83,95,58,102,83,120,91,97,82,111,100,109,113,115,104,124,110,114,108,151,136,144,114,168,163,144,121,273,183,182,204,491,489,477,468,724,704,29988,29985]} 1. e4 {[%emt 0:0:3]} e5 {[%emt 0:0:3]} 2. Nf3 {[%emt 0:0:5]} Nc6 {[%emt 0:0:5]} 3. Bb5 {[%emt 0:0:8]} Nf6 {[%emt 0:0:6]} 4. d3 {[%emt 0:0:0]} Bc5 {[%emt 0:0:20]} 5. c3 {[%emt 0:0:7]} d6 {[%emt 0:3:9]} 6. d4 {[%emt 0:1:15]
} exd4 {[%emt 0:12:47]} 7. cxd4 {[%emt 0:0:21]} Bb4+ {[%emt 0:0:0]} 8. Bd2 {[%emt 0:1:6]} Bxd2+ {[%emt 0:0:23]} 9. Nbxd2 {[%emt 0:0:58]
} Bd7 {[%emt 0:0:2]} 10. O-O {[%emt 0:2:6]} O-O {[%emt 0:0:8]} 11. Re1 {[%emt 0:2:21]
 C54: Giuoco Piano: 4 c3 Nf6, main lines with 5 d4 and 5 d3.} Re8 {[%emt 0:0:51]} 12. h3 {[%emt 0:13:8]} Ne7 {[%emt 0:18:37] [#]} 13. Bf1 $146 {[%emt 0:3:12] White is slightly better.} ({Predecessor:} 13. Bc4 d5 14. exd5 Rb8 15. Qb3 b5 16. Bf1 Nfxd5 17. Rac1 a5 18. Rc5 a4 19. Qc2 {½-½ (32) Tiglon,
B (2388)-Lee,M (2151) Kirkland 2020} )c6 {[%emt 0:0:57]} 14. Qb3 {[%emt 0:24:5]
} Qb6 {[%emt 0:19:10]} 15. Qa3 {[%emt 0:1:35]} Qc7 {[%emt 0:0:0]} 16. Nc4 {[%emt 0:4:48]} Nc8 {[%emt 0:0:57]} 17. e5 {[%emt 0:1:37]} dxe5 {[%emt 0:0:40]} 18. dxe5 {[%emt 0:0:8]} (18. Rxe5 Be6 $11 )Nd5 {[%emt 0:0:21]
} 19. Rac1 {[%emt 0:19:5]} h6 {[%emt 0:9:54]} 20. b4 {[%emt 0:0:0][%cal Yb4b5]} Qd8 {[%emt 0:27:14][%cal Ya7a5]} 21. Qb2 {[%emt 0:1:38]} Rb8 {[%emt 0:3:7]} 22. a3 {[%emt 0:2:22]} a6 {[%emt 0:3:9]} 23. Rcd1 {[%emt 0:3:58]
} Qc7 {[%emt 0:0:5]} 24. Qd4 {[%emt 0:2:57]} Bf5 {[%emt 0:0:0]} 25. Nh4 {[%emt 0:0:50]} Bh7 {[%emt 0:0:39]} 26. Bd3 {[%emt 0:0:52]} b5 {[%emt 0:0:23]} 27. Bxh7+ {[%emt 0:2:5]} Kxh7 {[%emt 0:0:2] [#]} 28. Na5 {[%emt 0:0:9][%cal Yc4a5,Ya5c6,Yc6d4]
} Nce7 {[%emt 0:0:52]} 29. Rc1 {[%emt 0:3:51][%cal Ya5c6]} Rbd8 {[%emt 0:0:40]} 30. Qe4+ {[%emt 0:0:14]} Kh8 {[%emt 0:2:36]} 31. Nf3 {[%emt 0:3:47] White is much more active.} Qd7 {[%emt 0:3:44]
} 32. Rc2 {[%emt 0:1:43]} Ng6 {[%emt 0:2:22]} (32... Nb6 $16 33. e6 (33. Nxc6 Nxc6 34. Rxc6 Re6 $16 )Qxe6 )33. Nxc6 $18 {[%emt 0:0:0]} Rc8 {[%emt 0:0:3] [#] Threatens to win with ...f5.} 34. Rec1 {[%emt 0:0:0][%cal Ye1c1,Yc1c2,Yc2c5]} Ngf4 $2 {[%emt 0:0:14] Loses the
game.} (34... Nb6 $16 {was necessary.} )35. Ncd4 {[%emt 0:2:45] Strongly
threatening Rc5.} Rxc2 {[%emt 0:0:20]} 36. Rxc2 {[%emt 0:0:7]} f6 $2 {[%emt 0:0:52]
} (36... Ne6 37. Nf5 Ne7 )37. Rc5 {[%emt 0:0:25]} fxe5 {[%emt 0:0:0]} 38. Nxe5 {[%emt 0:0:13]} Nc3 {[%emt 0:0:9]} (38... Qd8 $142 39. Ndc6 Qf6 )39. Rxc3 {[%emt 0:0:23]} ({Less strong is} 39. Nxd7 Nxe4 40. Rc2 Kg8 $16 )Qxd4 {[%emt 0:0:1]} 40. Nf7+ {[%emt 0:0:0] Weighted Error Value:
White=0.11 (very precise) /Black=0.44} ({Not} 40. Qxd4 Ne2+ 41. Kf1 Nxd4 $16 )1-0

[Event "10th Norway Chess 2022"]
[White "Anand,Viswanathan"]
[Black "Carlsen,Magnus"]
[Site "Stavanger"]
[Round "5.1"]
[Annotator "TA"]
[Result "1/2-1/2"]
[Date "2022.06.05"]
[WhiteElo "2751"]
[BlackElo "2864"]
[PlyCount "80"]
[TimeControl "60"]

{[%evp 13,80,29,25,25,25,23,18,21,44,31,23,29,31,31,29,31,50,50,63,54,51,49,56,57,43,17,17,18,23,23,30,41,113,97,100,108,164,163,233,232,239,231,239,244,239,228,243,247,231,239,206,104,119,85,100,16,8,0,0,0,0,0,0,0,0,0,0,0,0]} 1. e4 {[%emt 0:0:2]
} e5 {[%emt 0:0:6]} 2. Nf3 {[%emt 0:0:6]} Nc6 {[%emt 0:0:4]
} 3. Bc4 {[%emt 0:0:8]} Nf6 {[%emt 0:0:8]} 4. d3 {[%emt 0:0:12]} Be7 {[%emt 0:0:7]
} 5. O-O {[%emt 0:0:43]} O-O {[%emt 0:0:24]} 6. Re1 {[%emt 0:0:0]} d6 {[%emt 0:0:18]} 7. a4 {[%emt 0:0:17]} Na5 {[%emt 0:2:3] 7...h6
is the recent fashion.} 8. Ba2 {[%emt 0:1:5] C55: Two Knights: 4 d3, 4 d4
exd4 5 e5 and Max Lange Attack.} c5 {[%emt 0:0:3]} 9. c3 {[%emt 0:8:20]} Nc6 {[%emt 0:0:13]} 10. Na3 {[%emt 0:1:7][%cal Yb1a3,Ya3c2,Yc2e3,Ye3d5]
} h6 {[%emt 0:2:38]} 11. Nc2 {[%emt 0:6:20]} a6 {[%emt 0:4:37]} 12. Ne3 {[%emt 0:10:31]
} Be6 {[%emt 0:2:58]} 13. Nd5 {[%emt 0:5:19] [#]} Re8 $146 {[%emt 0:2:24]
} ({Predecessor:} 13... Rb8 14. Nd2 Qd7 15. Nc4 Bd8 16. Nxf6+ Bxf6 17. Nb6 Qd8 18. Nd5 Bg5 19. Bxg5 Qxg5 {½-½ (31) Achilles,E (2444)-Colin,
S (2437) ICCF email 2016} )14. Nd2 {[%emt 0:4:57]} b5 {[%emt 0:7:55]} 15. Nf1 {[%emt 0:4:3]} Bxd5 {[%emt 0:10:38]} 16. Bxd5 {[%emt 0:2:9]} Nxd5 {[%emt 0:0:0]} 17. exd5 {[%emt 0:0:26]} Na5 {[%emt 0:1:19]} 18. b4 {[%emt 0:6:36]} Nb7 {[%emt 0:0:4]} 19. Re2 {[%emt 0:5:53]} cxb4 {[%emt 0:4:23]} 20. cxb4 {[%emt 0:0:14]
} a5 {[%emt 0:0:11]} 21. axb5 {[%emt 0:2:48] Threatens to win
with Rea2.} axb4 {[%emt 0:0:57]} 22. Rb1 {[%emt 0:0:14]} Qd7 {[%emt 0:4:13]} ({Don't do} 22... Qa5 23. Reb2 $16 )(22... Nc5 $1 $14 )23. Reb2 $1 $16 {[%emt 0:5:9]
} Nc5 {[%emt 0:14:42]} 24. Rxb4 {[%emt 0:5:2]} Qf5 {[%emt 0:0:0]} (24... Reb8 $16 )25. Be3 $1 $18 {[%emt 0:5:51]} Nxd3 {[%emt 0:2:8]} (25... Qxd3 $142 26. Qxd3 Nxd3 )26. Ng3 {[%emt 0:2:29]} Qh7 {[%emt 0:0:40]} 27. R4b3 {[%emt 0:6:29]} Nc5 {[%emt 0:0:25]} 28. Bxc5 {[%emt 0:0:50]} dxc5 {[%emt 0:0:4]
 [#]} 29. b6 $1 {[%emt 0:0:19][%cal Yb5b6,Yb6b7]} Red8 {[%emt 0:2:45]} 30. b7 {[%emt 0:1:50]} Rab8 {[%emt 0:0:3]} 31. Rb6 {[%emt 0:0:45]
} c4 {[%emt 0:0:27]} 32. Rc6 {[%emt 0:1:32]} ({White should try
} 32. Qg4 $18 )Qd3 $16 {[%emt 0:7:25]} 33. Qf1 {[%emt 0:14:58]} Bf8 {[%emt 0:12:7]
 [#]} 34. Rxc4 {[%emt 0:4:3]} (34. d6 $1 $16 )Qxf1+ $11 {[%emt 0:2:43]
 The position is equal.} 35. Kxf1 {[%emt 0:0:30] Strongly
threatening Rc7.} Rd7 {[%emt 0:0:1] Against Rc7} 36. Rc8 {[%emt 0:0:17]} Rbxb7 {[%emt 0:0:6]} 37. Rxb7 {[%emt 0:0:17]} Rxb7 {[%emt 0:0:15]} 38. Nf5 {[%emt 0:0:15]} Rd7 {[%emt 0:0:50]} 39. g4 {[%emt 0:1:24]} g6 {[%emt 0:0:0]} 40. Nxh6+ {[%emt 0:0:0]} Kh7 {[%emt 0:0:0] Black escapes into a draw.
Weighted Error Value: White=0.09 (flawless) /Black=0.10 (very precise)} 1/2-1/2

[Event "10th Norway Chess 2022"]
[White "Vachier-Lagrave,Maxime"]
[Black "Topalov,Veselin"]
[Site "Stavanger"]
[Round "5.1"]
[Annotator "TA"]
[Result "1/2-1/2"]
[Date "2022.06.05"]
[WhiteElo "2750"]
[BlackElo "2730"]
[PlyCount "69"]
[TimeControl "60"]

{[%evp 12,69,29,11,29,10,24,5,12,0,0,-11,0,-18,0,0,0,-16,-8,-20,-18,-27,-19,-24,-31,-27,0,0,0,0,0,-27,0,0,-9,-43,0,0,0,0,0,0,7,0,2,0,0,0,0,0,17,19,16,15,8,3,4,3,3,4]} 1. e4 {[%emt 0:0:2]} e5 {[%emt 0:0:10]} 2. Nf3 {[%emt 0:0:4]} Nc6 {[%emt 0:0:4]} 3. Bc4 {[%emt 0:0:3]} Bc5 {[%emt 0:0:17]} 4. O-O {[%emt 0:0:12]
} Nf6 {[%emt 0:0:18]} 5. d3 {[%emt 0:0:3]} d6 {[%emt 0:0:45]} 6. c3 {[%emt 0:0:23]} h6 {[%emt 0:2:52]} 7. Re1 {[%emt 0:2:37]} O-O {[%emt 0:2:10]
 C54: Giuoco Piano: 4 c3 Nf6, main lines with 5 d4 and 5 d3.} 8. Nbd2 {[%emt 0:3:16]} a6 {[%emt 0:8:39]} 9. a4 {[%emt 0:1:22] 9.Nf1 is
setting a new trend.} Ne7 {[%emt 0:2:21][%cal Yc6e7,Ye7g6,Yg6e5]} 10. d4 {[%emt 0:1:0]} exd4 {[%emt 0:3:14] [#]} 11. Nb3 $146 {[%emt 0:11:45]} ({
Predecessor:} 11. cxd4 Ba7 12. h3 Nc6 13. d5 Nb4 14. Nf1 c6 15. Bd2 Bc5 16. Qb3 cxd5 17. exd5 {1-0 (43) Navara,D (2735)-Pashikian,A (2612) Gjakova 2016} )Ba7 {[%emt 0:3:58]} (11... dxc3 {is more complex.} 12. e5 cxb2 13. Bxb2 Nh5 )12. Nbxd4 {[%emt 0:4:24]} Ng6 {[%emt 0:2:54][%cal Yf6e4]} 13. Qc2 {[%emt 0:0:0]} Re8 {[%emt 0:9:39]} 14. h3 {[%emt 0:1:17]} c5 {[%emt 0:5:3]} 15. Nf5 {[%emt 0:12:42]} Bxf5 {[%emt 0:12:51]} 16. exf5 {[%emt 0:0:11]} Rxe1+ {[%emt 0:0:5]
} 17. Nxe1 {[%emt 0:0:5]} Ne5 {[%emt 0:0:11] Pair of Knights!} 18. Be2 {[%emt 0:1:57]} Qe7 {[%emt 0:8:37]} 19. Bf4 {[%emt 0:1:40]} Re8 {[%emt 0:0:44]
} 20. Nf3 {[%emt 0:6:13]} c4 {[%emt 0:1:2][%cal Ye5g6]} 21. Kf1 {[%emt 0:6:47]} (21. Bg3 $5 {[%cal Rf3e5]} )b5 {[%emt 0:5:56]} 22. axb5 {[%emt 0:2:16]} axb5 {[%emt 0:0:5]} 23. b3 {[%emt 0:3:19]} Nxf3 {[%emt 0:12:52]
} (23... Bc5 $5 {[%cal Rc4b3]} )24. Bxf3 {[%emt 0:0:9] The
position is equal.} d5 {[%emt 0:0:6]} 25. bxc4 {[%emt 0:0:40]} bxc4 {[%emt 0:0:8]
} 26. g4 {[%emt 0:9:4]} Bb8 {[%emt 0:1:19]} 27. Qc1 {[%emt 0:0:0]} Qb7 {[%emt 0:4:18]} 28. Kg2 {[%emt 0:1:54]} Bxf4 {[%emt 0:2:3]} 29. Qxf4 {[%emt 0:0:7]} Qb2 {[%emt 0:3:2][%csl Ya1,Yc3]} 30. Qc1 {[%emt 0:0:0]} Rb8 {[%emt 0:1:48]} 31. Qxb2 {[%emt 0:10:29]} Rxb2 {[%emt 0:0:8]} 32. Ra8+ {[%emt 0:0:3]} Kh7 {[%emt 0:0:9]} 33. Rf8 {[%emt 0:0:4]} Rb7 {[%emt 0:2:43]
} 34. h4 {[%emt 0:4:17] [#] aiming for g5.} g5 $1 {[%emt 0:0:0]} 35. fxg6+ {[%emt 0:0:6] An interesting draw.  Weighted Error Value:
White=0.09 (flawless) /Black=0.06 (flawless)} 1/2-1/2

[Event "10th Norway Chess 2022"]
[White "Tari,Aryan"]
[Black "Wang,Hao"]
[Site "Stavanger"]
[Round "5.1"]
[Annotator "TA"]
[Result "1-0"]
[Date "2022.06.05"]
[WhiteElo "2654"]
[BlackElo "2744"]
[PlyCount "88"]
[TimeControl "60"]

{[%evp 9,88,27,31,27,31,23,24,27,30,32,51,40,42,39,31,0,0,-45,-41,-53,-37,-70,-63,-44,-43,-60,-56,-58,-21,-30,-16,-70,-46,-72,-56,-94,-101,-110,-18,-22,-37,-152,-159,-166,-131,-150,-96,-100,0,0,0,0,0,0,55,51,51,0,0,0,0,0,0,0,19,15,45,38,38,39,37,39,1499,1183,5035,5025,5027,4827,29982,29983,29996]} 1. e4 {[%emt 0:0:8]
} e5 {[%emt 0:0:4]} 2. Nf3 {[%emt 0:0:5]} Nc6 {[%emt 0:0:3]
} 3. Bc4 {[%emt 0:0:7]} Nf6 {[%emt 0:0:5]} 4. d3 {[%emt 0:0:5]} h6 {[%emt 0:0:3]
} 5. c3 {[%emt 0:0:29]} d6 {[%emt 0:0:4]} 6. a4 {[%emt 0:0:0] C55: Two Knights: 4 d3, 4 d4 exd4 5 e5 and Max Lange Attack.} g5 {[%emt 0:0:0]} 7. Qb3 {[%emt 0:0:15]} Qe7 {[%emt 0:2:20]} 8. a5 {[%emt 0:0:57]
White has an edge.} Bg7 {[%emt 0:4:56]} 9. Nbd2 {[%emt 0:6:17]} Nd8 {[%emt 0:0:0]} 10. Nf1 {[%emt 0:9:52] [#]} c6 $146 {[%emt 0:2:18]} ({Predecessor:} 10... g4 11. Ng1 c6 12. Ne3 h5 13. Ne2 Bh6 14. O-O Be6 15. f4 gxf3 16. Rxf3 d5 17. exd5 cxd5 {1-0 (39) Santos Ruiz,M (2581)-Niemann,H (2478) Sitges 2020} )11. Ne3 {[%emt 0:6:40]} Ng4 {[%emt 0:6:43]} 12. Nf1 {[%emt 0:14:50]} f5 {[%emt 0:0:0]} 13. h4 {[%emt 0:10:1][%cal Rh4g5]} f4 {[%emt 0:8:40]} 14. Qd1 {[%emt 0:4:59]
} Be6 {[%emt 0:8:27]} 15. hxg5 {[%emt 0:16:6]} hxg5 {[%emt 0:0:0]} 16. Rxh8+ {[%emt 0:0:12]} Bxh8 {[%emt 0:0:6]} 17. Bxe6 {[%emt 0:0:0]} Nxe6 {[%emt 0:0:9]} 18. Nh4 {[%emt 0:1:5]} gxh4 {[%emt 0:4:9]} 19. Qxg4 {[%emt 0:0:26]} O-O-O {[%emt 0:5:34]} 20. Bd2 {[%emt 0:1:27]} (20. b4 $11 )Kb8 {[%emt 0:6:44]} 21. b4 $1 {[%emt 0:1:37]} d5 {[%emt 0:3:17]} 22. Nh2 {[%emt 0:4:17]} dxe4 {[%emt 0:17:0]} 23. dxe4 {[%emt 0:0:26]} Qh7 {[%emt 0:0:56]
} 24. O-O-O $11 {[%emt 0:3:31]} Re8 {[%emt 0:1:35]} 25. Re1 {[%emt 0:11:43]
} (25. Qe2 $15 )c5 $17 {[%emt 0:0:50] White must now
prevent ...Qd7.} 26. Nf3 {[%emt 0:0:16][%cal Yh2f3,Yf3h4,Yh4f5]} Qd7 {[%emt 0:2:21] Strongly threatening ...cxb4.} 27. Kb2 {[%emt 0:0:39]} a6 {[%emt 0:2:12]
} (27... Qd3 $142 $1 {aiming for ...cxb4.} 28. Qg6 Nc7 )28. Rc1 {[%emt 0:1:30]
} ({Don't go for} 28. Qxh4 $2 Qd3 29. Qh6 cxb4 30. cxb4 Nd4 31. Nxd4 Qxd2+ 32. Nc2 Rc8 $19 )Rd8 {[%emt 0:0:44]} (28... Bf6 $17 )29. Be1 $1 $11 {[%emt 0:1:13]} Qd6 {[%emt 0:0:7]} 30. Nxh4 {[%emt 0:1:42]} cxb4 {[%emt 0:0:5]
} 31. cxb4 {[%emt 0:0:4]} Nd4 {[%emt 0:0:6]} ({Better is} 31... Bf6 $11 )32. Nf5 $14 {[%emt 0:1:5]} Qe6 {[%emt 0:0:13]} 33. Qd1 {[%emt 0:0:13]
 Prevents Qb3+.} (33. Qh3 $14 )Qg8 $11 {[%emt 0:0:43]} 34. Nxd4 {[%emt 0:1:50]} exd4 {[%emt 0:0:4]} 35. Qd3 {[%emt 0:0:46]} Qxg2 {[%emt 0:0:3]
} 36. Rc2 {[%emt 0:1:6]} f3 {[%emt 0:0:18]} 37. Bd2 {[%emt 0:0:0] Hoping for Bf4+.} Be5 {[%emt 0:0:16] Against Bf4} 38. b5 {[%emt 0:0:0]} axb5 {[%emt 0:0:2]} (38... Qxf2 $2 39. Bf4 $1 {} Qxc2+ 40. Kxc2 $18 )39. Qxb5 {[%emt 0:0:5]} Qg7 {[%emt 0:0:4] Threatens to win with .
..d3+.} 40. Rc5 {[%emt 0:0:33]} d3+ $2 {[%emt 0:0:0]} (40... Bd6 $14 )41. Rxe5 $18 {[%emt 2:0:5]} Rc8 {[%emt 2:0:0]} 42. Kb3 {[%emt 0:2:18]
White wants to mate with a6.} Qc7 {[%emt 0:1:23] [#]} 43. a6 $1 {[%emt 0:0:0]} Qc2+ {[%emt 0:0:2]} 44. Ka3 {[%emt 0:0:3][%csl Ga6][%cal Rb5b7]} Rc7 {[%emt 0:0:8]
 White used his chance.  Weighted Error Value: White=0.15 (very
precise) /Black=0.34} 1-0